[Event "*** Titled Tuesday Blitz"]
[Site "Chess.com"]
[Date "2019.12.03"]
[Round "3"]
[White "Everyfishknows"]
[Black "M1711"]
[Result "1/2-1/2"]
[WhiteElo "2304"]
[BlackElo "2518"]
[TimeControl "180+2"]
[EndTime "13:39:18 PST"]
[Termination "Game drawn - insufficient material"]

1. Nf3 {[%clk 0:03:01.9]} 1... Nf6 {[%clk 0:02:55.5]} 2. c4 {[%clk 0:03:02.2]}
2... g6 {[%clk 0:02:56]} 3. Nc3 {[%clk 0:03:03]} 3... Bg7 {[%clk 0:02:55.8]} 4.
e4 {[%clk 0:03:03.8]} 4... d6 {[%clk 0:02:56.3]} 5. d4 {[%clk 0:03:02]} 5... O-O
{[%clk 0:02:57.3]} 6. Be2 {[%clk 0:03:01.6]} 6... e5 {[%clk 0:02:56.3]} 7. O-O
{[%clk 0:03:01.9]} 7... Na6 {[%clk 0:02:57.3]} 8. Re1 {[%clk 0:03:02.1]} 8... c6
{[%clk 0:02:54.8]} 9. Bf1 {[%clk 0:03:02.6]} 9... exd4 {[%clk 0:02:52.3]} 10.
Nxd4 {[%clk 0:03:03.2]} 10... Re8 {[%clk 0:02:53]} 11. h3 {[%clk 0:02:58.1]}
11... Nc5 {[%clk 0:02:52.7]} 12. f3 {[%clk 0:02:38.5]} 12... Nh5 {[%clk
0:02:50.7]} 13. Be3 {[%clk 0:02:36.6]} 13... Qh4 {[%clk 0:02:46.2]} 14. Bf2
{[%clk 0:02:28.2]} 14... Qg5 {[%clk 0:02:41.9]} 15. Nb3 {[%clk 0:02:11.9]} 15...
Nxb3 {[%clk 0:02:38.3]} 16. axb3 {[%clk 0:02:12.8]} 16... Be5 {[%clk 0:02:18]}
17. Ne2 {[%clk 0:02:04.8]} 17... Bxh3 {[%clk 0:02:16.4]} 18. Qc1 {[%clk
0:01:54.7]} 18... Nf4 {[%clk 0:01:58.3]} 19. Nxf4 {[%clk 0:01:52.8]} 19... Bxf4
{[%clk 0:02:00.2]} 20. Be3 {[%clk 0:01:53.1]} 20... Bxe3+ {[%clk 0:02:01.8]} 21.
Qxe3 {[%clk 0:01:53.9]} 21... Qxe3+ {[%clk 0:02:02.9]} 22. Rxe3 {[%clk
0:01:54.9]} 22... Be6 {[%clk 0:02:04.8]} 23. Rd1 {[%clk 0:01:51.4]} 23... a5
{[%clk 0:01:42.5]} 24. Rxd6 {[%clk 0:01:49.9]} 24... g5 {[%clk 0:01:13.7]} 25.
Kf2 {[%clk 0:01:45.4]} 25... Kf8 {[%clk 0:01:12.4]} 26. Rd1 {[%clk 0:01:42.5]}
26... Ke7 {[%clk 0:01:09.9]} 27. c5 {[%clk 0:01:34.6]} 27... a4 {[%clk 0:01:05]}
28. b4 {[%clk 0:01:32.7]} 28... Bb3 {[%clk 0:01:06.6]} 29. Rd4 {[%clk
0:01:25.5]} 29... Red8 {[%clk 0:00:55.5]} 30. Red3 {[%clk 0:01:26.1]} 30... Rxd4
{[%clk 0:00:53.3]} 31. Rxd4 {[%clk 0:01:27.2]} 31... a3 {[%clk 0:00:55.2]} 32.
bxa3 {[%clk 0:01:24.2]} 32... Rxa3 {[%clk 0:00:57.1]} 33. Kg3 {[%clk 0:01:12.7]}
33... Be6 {[%clk 0:00:52.4]} 34. Bc4 {[%clk 0:01:10.2]} 34... Bxc4 {[%clk
0:00:40.1]} 35. Rxc4 {[%clk 0:01:11.1]} 35... Rb3 {[%clk 0:00:40.7]} 36. Kg4
{[%clk 0:01:05.2]} 36... h6 {[%clk 0:00:39.2]} 37. Rd4 {[%clk 0:01:00.6]} 37...
Rb2 {[%clk 0:00:39.3]} 38. g3 {[%clk 0:01:01.5]} 38... Kf6 {[%clk 0:00:36.3]}
39. f4 {[%clk 0:01:01.8]} 39... Kg6 {[%clk 0:00:20.6]} 40. Rd6+ {[%clk
0:00:58.1]} 40... Kg7 {[%clk 0:00:21.6]} 41. fxg5 {[%clk 0:00:55.8]} 41... hxg5
{[%clk 0:00:21.6]} 42. Rd4 {[%clk 0:00:47.6]} 42... Kg6 {[%clk 0:00:18.9]} 43.
Rd6+ {[%clk 0:00:48.5]} 43... f6 {[%clk 0:00:18.6]} 44. e5 {[%clk 0:00:47.5]}
44... Rxb4+ {[%clk 0:00:17.3]} 45. Kf3 {[%clk 0:00:49.1]} 45... g4+ {[%clk
0:00:05.7]} 46. Ke3 {[%clk 0:00:48.4]} 46... Rc4 {[%clk 0:00:04.1]} 47. Rxf6+
{[%clk 0:00:47.3]} 47... Kg7 {[%clk 0:00:03.5]} 48. Rd6 {[%clk 0:00:46]} 48...
Rxc5 {[%clk 0:00:04.3]} 49. Rd7+ {[%clk 0:00:47.3]} 49... Kg6 {[%clk 0:00:05.4]}
50. Rxb7 {[%clk 0:00:46.4]} 50... Rxe5+ {[%clk 0:00:06.4]} 51. Kf4 {[%clk
0:00:47.3]} 51... Rg5 {[%clk 0:00:03.3]} 52. Rb6 {[%clk 0:00:44.5]} 52... Rc5
{[%clk 0:00:04.1]} 53. Kxg4 {[%clk 0:00:45.5]} 53... Rc4+ {[%clk 0:00:05.8]} 54.
Kh3 {[%clk 0:00:46.2]} 54... Kf5 {[%clk 0:00:07.7]} 55. Rb8 {[%clk 0:00:45.9]}
55... Rc1 {[%clk 0:00:07.5]} 56. Rf8+ {[%clk 0:00:46]} 56... Kg5 {[%clk
0:00:08.6]} 57. Rg8+ {[%clk 0:00:47.1]} 57... Kf5 {[%clk 0:00:09.9]} 58. Rf8+
{[%clk 0:00:48.2]} 58... Kg5 {[%clk 0:00:11.1]} 59. Rg8+ {[%clk 0:00:48]} 59...
Kf6 {[%clk 0:00:12.7]} 60. Rc8 {[%clk 0:00:47.5]} 60... c5 {[%clk 0:00:13.1]}
61. Kg4 {[%clk 0:00:48.3]} 61... c4 {[%clk 0:00:11.8]} 62. Kf4 {[%clk
0:00:47.7]} 62... c3 {[%clk 0:00:10.2]} 63. Ke3 {[%clk 0:00:48.8]} 63... Re1+
{[%clk 0:00:07.6]} 64. Kd3 {[%clk 0:00:49]} 64... Rg1 {[%clk 0:00:08.6]} 65.
Rxc3 {[%clk 0:00:49.5]} 65... Rxg3+ {[%clk 0:00:09.7]} 66. Kc4 {[%clk
0:00:50.6]} 66... Rxc3+ {[%clk 0:00:11.3]} 67. Kxc3 {[%clk 0:00:51.9]} 1/2-1/2

[Event "*** Titled Tuesday Blitz"]
[Site "Chess.com"]
[Date "2019.12.03"]
[Round "3"]
[White "ElGasanov"]
[Black "sergoy"]
[Result "1/2-1/2"]
[WhiteElo "2672"]
[BlackElo "2904"]
[TimeControl "180+2"]
[EndTime "13:39:25 PST"]
[Termination "Game drawn by repetition"]

1. c4 {[%clk 0:03:01.9]} 1... e5 {[%clk 0:03:00.7]} 2. Nc3 {[%clk 0:03:01.4]}
2... Nf6 {[%clk 0:03:02.1]} 3. Nf3 {[%clk 0:03:00.8]} 3... Nc6 {[%clk
0:03:02.7]} 4. e4 {[%clk 0:02:58.9]} 4... Bc5 {[%clk 0:03:01.5]} 5. Nxe5 {[%clk
0:02:58.8]} 5... Nxe5 {[%clk 0:03:02.7]} 6. d4 {[%clk 0:02:59.7]} 6... Bb4
{[%clk 0:03:04.4]} 7. dxe5 {[%clk 0:03:00.4]} 7... Nxe4 {[%clk 0:03:06.1]} 8.
Qd4 {[%clk 0:03:00.4]} 8... Nxc3 {[%clk 0:02:58.1]} 9. bxc3 {[%clk 0:03:01.5]}
9... Be7 {[%clk 0:02:58.7]} 10. Qg4 {[%clk 0:03:01.8]} 10... O-O {[%clk
0:02:46]} 11. Bh6 {[%clk 0:03:01.3]} 11... g6 {[%clk 0:02:47.3]} 12. Bxf8 {[%clk
0:03:01.1]} 12... Bxf8 {[%clk 0:02:49.2]} 13. Be2 {[%clk 0:02:39.6]} 13... d6
{[%clk 0:02:49]} 14. Qg3 {[%clk 0:02:20.2]} 14... dxe5 {[%clk 0:02:49.7]} 15.
Qxe5 {[%clk 0:02:12.6]} 15... Bd6 {[%clk 0:02:32.1]} 16. Qe3 {[%clk 0:02:05]}
16... Be6 {[%clk 0:02:28.1]} 17. c5 {[%clk 0:01:58.2]} 17... Bf8 {[%clk
0:02:25.6]} 18. O-O {[%clk 0:01:57.5]} 18... b6 {[%clk 0:02:21.6]} 19. Rfd1
{[%clk 0:01:49.7]} 19... Qh4 {[%clk 0:02:13]} 20. g3 {[%clk 0:01:46.9]} 20...
Qe7 {[%clk 0:02:01.1]} 21. Bf3 {[%clk 0:01:38.9]} 21... Re8 {[%clk 0:01:51.6]}
22. Bc6 {[%clk 0:01:33.3]} 22... Rb8 {[%clk 0:01:19.3]} 23. Bd7 {[%clk
0:01:25.8]} 23... Bxd7 {[%clk 0:00:51.6]} 24. Qxe7 {[%clk 0:01:25.6]} 24... Bxe7
{[%clk 0:00:47.3]} 25. Rxd7 {[%clk 0:01:26.9]} 25... Bxc5 {[%clk 0:00:48.3]} 26.
Rxc7 {[%clk 0:01:24.3]} 26... Rd8 {[%clk 0:00:49.5]} 27. Rxa7 {[%clk 0:01:23.7]}
27... Rd2 {[%clk 0:00:50.5]} 28. Rf1 {[%clk 0:01:24.4]} 28... Rc2 {[%clk
0:00:51.6]} 29. Kg2 {[%clk 0:01:03.5]} 29... Rxc3 {[%clk 0:00:52.2]} 30. g4
{[%clk 0:01:04.4]} 30... h6 {[%clk 0:00:48.2]} 31. h3 {[%clk 0:00:56.1]} 31...
Rc2 {[%clk 0:00:47]} 32. a4 {[%clk 0:00:52.4]} 32... Ra2 {[%clk 0:00:47.6]} 33.
Kf3 {[%clk 0:00:45.7]} 33... Kg7 {[%clk 0:00:42.9]} 34. h4 {[%clk 0:00:44.4]}
34... Ra3+ {[%clk 0:00:41.4]} 35. Ke4 {[%clk 0:00:45.2]} 35... b5 {[%clk
0:00:37.8]} 36. Rc7 {[%clk 0:00:45.6]} 36... Rxa4+ {[%clk 0:00:37]} 37. Kf3
{[%clk 0:00:45.4]} 37... Bd6 {[%clk 0:00:29.3]} 38. Rd7 {[%clk 0:00:45.7]} 38...
Rf4+ {[%clk 0:00:26.4]} 39. Ke3 {[%clk 0:00:46.1]} 39... Be5 {[%clk 0:00:26.8]}
40. Rd5 {[%clk 0:00:46.1]} 40... Kf6 {[%clk 0:00:25.7]} 41. g5+ {[%clk
0:00:46.5]} 41... hxg5 {[%clk 0:00:22.7]} 42. hxg5+ {[%clk 0:00:47.5]} 42... Kf5
{[%clk 0:00:24.1]} 43. Rb1 {[%clk 0:00:45.6]} 43... b4 {[%clk 0:00:23.4]} 44.
Rb5 {[%clk 0:00:43.8]} 44... Re4+ {[%clk 0:00:24.4]} 45. Kf3 {[%clk 0:00:43.5]}
45... Rf4+ {[%clk 0:00:25.6]} 46. Ke2 {[%clk 0:00:44.3]} 46... Re4+ {[%clk
0:00:25.6]} 47. Kf1 {[%clk 0:00:45.4]} 47... Kxg5 {[%clk 0:00:26.9]} 48. f3
{[%clk 0:00:45.5]} 48... Rh4 {[%clk 0:00:10.5]} 49. Rxe5+ {[%clk 0:00:45.8]}
49... Kf6 {[%clk 0:00:11.5]} 50. Ree1 {[%clk 0:00:40.4]} 50... Kf5 {[%clk
0:00:12.4]} 51. Kg2 {[%clk 0:00:38.9]} 51... Rc4 {[%clk 0:00:13.4]} 52. Kg3
{[%clk 0:00:35.3]} 52... f6 {[%clk 0:00:13.1]} 53. Re3 {[%clk 0:00:34.7]} 53...
g5 {[%clk 0:00:12.6]} 54. Reb3 {[%clk 0:00:35.7]} 54... Kg6 {[%clk 0:00:13.6]}
55. Rxb4 {[%clk 0:00:37]} 55... Rc2 {[%clk 0:00:15]} 56. Rb6 {[%clk 0:00:37.1]}
56... Rc5 {[%clk 0:00:14]} 57. Re1 {[%clk 0:00:37.8]} 57... Rf5 {[%clk
0:00:14.2]} 58. Ree6 {[%clk 0:00:38.6]} 58... Rf4 {[%clk 0:00:15.4]} 59. Rb5
{[%clk 0:00:39.4]} 59... Rc4 {[%clk 0:00:15]} 60. Rd6 {[%clk 0:00:39]} 60... Rf4
{[%clk 0:00:13.9]} 61. Re6 {[%clk 0:00:39.2]} 61... Rc4 {[%clk 0:00:14.6]} 62.
Re4 {[%clk 0:00:39.6]} 62... Rc1 {[%clk 0:00:15]} 63. Re6 {[%clk 0:00:39.4]}
63... Rc4 {[%clk 0:00:15.5]} 1/2-1/2

[Event "*** Titled Tuesday Blitz"]
[Site "Chess.com"]
[Date "2019.12.03"]
[Round "3"]
[White "olksuna"]
[Black "marcodobrikov"]
[Result "1-0"]
[WhiteElo "2603"]
[BlackElo "2352"]
[TimeControl "180+2"]
[EndTime "13:39:47 PST"]
[Termination "olksuna won by resignation"]

1. Nf3 {[%clk 0:03:01.9]} 1... c5 {[%clk 0:03:00.6]} 2. c4 {[%clk 0:03:01.9]}
2... Nc6 {[%clk 0:03:00.8]} 3. d4 {[%clk 0:03:02.2]} 3... cxd4 {[%clk
0:03:01.3]} 4. Nxd4 {[%clk 0:03:04.1]} 4... g6 {[%clk 0:03:01.1]} 5. e4 {[%clk
0:03:04.8]} 5... Bg7 {[%clk 0:03:01.1]} 6. Be3 {[%clk 0:03:06.4]} 6... Nf6
{[%clk 0:03:00]} 7. Nc3 {[%clk 0:03:07]} 7... O-O {[%clk 0:03:00.2]} 8. Be2
{[%clk 0:03:07.9]} 8... d6 {[%clk 0:02:59.5]} 9. O-O {[%clk 0:03:08.8]} 9... Bd7
{[%clk 0:02:58.5]} 10. Nc2 {[%clk 0:03:09.8]} 10... Rc8 {[%clk 0:02:55.3]} 11.
f3 {[%clk 0:03:09.8]} 11... a6 {[%clk 0:02:55.3]} 12. Rc1 {[%clk 0:03:08.7]}
12... Ne5 {[%clk 0:02:55.8]} 13. Na3 {[%clk 0:03:07.3]} 13... Be6 {[%clk
0:02:46]} 14. b3 {[%clk 0:03:00.1]} 14... Qa5 {[%clk 0:02:45.7]} 15. Qd2 {[%clk
0:02:58.9]} 15... Qxa3 {[%clk 0:02:45]} 16. Nb1 {[%clk 0:02:59.6]} 16... Qxc1
{[%clk 0:02:24.6]} 17. Rxc1 {[%clk 0:02:59.6]} 17... Nfd7 {[%clk 0:02:23.7]} 18.
Nc3 {[%clk 0:02:57.2]} 18... Nc6 {[%clk 0:02:22.7]} 19. Nd5 {[%clk 0:02:50.6]}
19... Bxd5 {[%clk 0:02:21.3]} 20. exd5 {[%clk 0:02:49.3]} 20... Ncb8 {[%clk
0:02:17.5]} 21. b4 {[%clk 0:02:42.3]} 21... Rc7 {[%clk 0:02:15]} 22. f4 {[%clk
0:02:38]} 22... Rfc8 {[%clk 0:02:15.2]} 23. a4 {[%clk 0:02:04.2]} 23... Nf6
{[%clk 0:02:14.5]} 24. Bb6 {[%clk 0:01:56.8]} 24... Rd7 {[%clk 0:02:12.1]} 25.
Bf3 {[%clk 0:01:56]} 25... e5 {[%clk 0:02:04.4]} 26. dxe6 {[%clk 0:01:52.6]}
26... fxe6 {[%clk 0:02:04.5]} 27. b5 {[%clk 0:01:48.8]} 27... Kf7 {[%clk
0:02:02.8]} 28. Qd3 {[%clk 0:01:37.1]} 28... Bf8 {[%clk 0:01:55.3]} 29. Re1
{[%clk 0:01:35.6]} 29... d5 {[%clk 0:01:47.1]} 30. Qe3 {[%clk 0:01:26.5]} 30...
Re8 {[%clk 0:01:41.4]} 31. c5 {[%clk 0:01:23.5]} 31... Rde7 {[%clk 0:01:34.3]}
32. Qd4 {[%clk 0:01:06.7]} 32... Rc8 {[%clk 0:01:31.2]} 33. h4 {[%clk
0:00:46.5]} 33... Ree8 {[%clk 0:01:30.6]} 34. Rc1 {[%clk 0:00:44]} 34... Nfd7
{[%clk 0:01:21.8]} 35. Ba7 {[%clk 0:00:42.1]} 35... Nf6 {[%clk 0:01:11.9]} 36.
Kh1 {[%clk 0:00:40.3]} 36... Rc7 {[%clk 0:01:09]} 37. Bb6 {[%clk 0:00:37.3]}
37... Rcc8 {[%clk 0:01:08.5]} 38. h5 {[%clk 0:00:37]} 38... gxh5 {[%clk
0:01:04.2]} 39. Qe5 {[%clk 0:00:36.2]} 39... Nbd7 {[%clk 0:01:02.7]} 40. Bxh5+
{[%clk 0:00:37.3]} 40... Nxh5 {[%clk 0:00:55.2]} 41. Qxh5+ {[%clk 0:00:39.2]}
41... Kg7 {[%clk 0:00:56]} 42. Rc3 {[%clk 0:00:31.3]} 42... Kh8 {[%clk
0:00:40.6]} 43. Rg3 {[%clk 0:00:29.9]} 43... Re7 {[%clk 0:00:38.8]} 44. Ba5
{[%clk 0:00:23.3]} 44... Bg7 {[%clk 0:00:36.9]} 45. Bc3 {[%clk 0:00:22.6]} 45...
Bxc3 {[%clk 0:00:32.4]} 46. Rxc3 {[%clk 0:00:24.5]} 46... Rxc5 {[%clk
0:00:33.3]} 47. Rxc5 {[%clk 0:00:23.8]} 47... Nxc5 {[%clk 0:00:33.1]} 48. Qe5+
{[%clk 0:00:25.4]} 48... Kg8 {[%clk 0:00:32.2]} 49. Qd6 {[%clk 0:00:25.1]} 49...
Rf7 {[%clk 0:00:31.5]} 50. Qxc5 {[%clk 0:00:26]} 50... axb5 {[%clk 0:00:32]} 51.
axb5 {[%clk 0:00:26.7]} 51... Rxf4 {[%clk 0:00:32.6]} 52. Qc8+ {[%clk
0:00:26.3]} 52... Kg7 {[%clk 0:00:32.4]} 53. Qxb7+ {[%clk 0:00:26.7]} 53... Kf6
{[%clk 0:00:31]} 54. Qxh7 {[%clk 0:00:27.5]} 54... Rb4 {[%clk 0:00:31.7]} 55.
Qh8+ {[%clk 0:00:21.4]} 55... Ke7 {[%clk 0:00:31.3]} 56. Qb8 {[%clk 0:00:20.9]}
56... d4 {[%clk 0:00:30.5]} 57. Qc7+ {[%clk 0:00:21.8]} 57... Kf6 {[%clk
0:00:30.2]} 58. b6 {[%clk 0:00:23.2]} 58... Rb1+ {[%clk 0:00:28.6]} 59. Kh2
{[%clk 0:00:24]} 59... e5 {[%clk 0:00:27.8]} 60. b7 {[%clk 0:00:24.6]} 60... d3
{[%clk 0:00:28.5]} 61. b8=Q {[%clk 0:00:25.7]} 61... Rxb8 {[%clk 0:00:28.9]} 62.
Qxb8 {[%clk 0:00:27.6]} 62... e4 {[%clk 0:00:30.4]} 63. Qf4+ {[%clk 0:00:27.6]}
1-0

[Event "*** Titled Tuesday Blitz"]
[Site "Chess.com"]
[Date "2019.12.03"]
[Round "3"]
[White "gmcorrales"]
[Black "Sergey85Rodchenkov"]
[Result "1/2-1/2"]
[WhiteElo "2730"]
[BlackElo "2445"]
[TimeControl "180+2"]
[EndTime "13:39:57 PST"]
[Termination "Game drawn by repetition"]

1. e4 {[%clk 0:03:00.8]} 1... c5 {[%clk 0:03:00.7]} 2. Nf3 {[%clk 0:03:01.8]}
2... e6 {[%clk 0:03:01.3]} 3. d4 {[%clk 0:03:03.3]} 3... cxd4 {[%clk 0:03:01.4]}
4. Nxd4 {[%clk 0:03:05.2]} 4... a6 {[%clk 0:03:02.3]} 5. Bd3 {[%clk 0:03:05.4]}
5... Bc5 {[%clk 0:03:02.5]} 6. Nb3 {[%clk 0:03:07]} 6... Ba7 {[%clk 0:03:03.3]}
7. Qe2 {[%clk 0:03:06.3]} 7... Nc6 {[%clk 0:03:02.7]} 8. Be3 {[%clk 0:03:07.7]}
8... Nge7 {[%clk 0:03:03.5]} 9. N1d2 {[%clk 0:03:08.4]} 9... O-O {[%clk
0:03:02]} 10. f4 {[%clk 0:03:05.7]} 10... d6 {[%clk 0:02:57.4]} 11. a3 {[%clk
0:03:05.1]} 11... b6 {[%clk 0:02:57.7]} 12. Nf3 {[%clk 0:03:00]} 12... b5 {[%clk
0:02:57.9]} 13. Rd1 {[%clk 0:02:53.3]} 13... Qc7 {[%clk 0:02:55.6]} 14. O-O
{[%clk 0:02:53.5]} 14... Bb7 {[%clk 0:02:55.6]} 15. Kh1 {[%clk 0:02:54]} 15...
Bxe3 {[%clk 0:02:50.4]} 16. Qxe3 {[%clk 0:02:55.9]} 16... Rad8 {[%clk
0:02:46.4]} 17. Rd2 {[%clk 0:02:41.1]} 17... Rfe8 {[%clk 0:02:43.3]} 18. Rfd1
{[%clk 0:02:41.7]} 18... Ng6 {[%clk 0:02:42.1]} 19. c3 {[%clk 0:02:22]} 19...
Qe7 {[%clk 0:02:33]} 20. Nbd4 {[%clk 0:02:14.6]} 20... Qf6 {[%clk 0:02:30]} 21.
Nxc6 {[%clk 0:01:20.7]} 21... Bxc6 {[%clk 0:02:29.7]} 22. e5 {[%clk 0:01:21.9]}
22... dxe5 {[%clk 0:02:27.2]} 23. fxe5 {[%clk 0:01:19.1]} 23... Qe7 {[%clk
0:02:17.5]} 24. Nd4 {[%clk 0:01:07.7]} 24... Bb7 {[%clk 0:02:07.7]} 25. Rf2
{[%clk 0:01:07.3]} 25... Qh4 {[%clk 0:02:03.2]} 26. Rdf1 {[%clk 0:01:00.7]}
26... Rd7 {[%clk 0:01:52.1]} 27. Kg1 {[%clk 0:00:42.9]} 27... Qh5 {[%clk
0:01:44.2]} 28. Bxg6 {[%clk 0:00:41]} 28... Qxg6 {[%clk 0:01:37.9]} 29. h3
{[%clk 0:00:29.2]} 29... h6 {[%clk 0:01:37.3]} 30. Kh2 {[%clk 0:00:30.3]} 30...
Ree7 {[%clk 0:01:34.1]} 31. Re1 {[%clk 0:00:27.4]} 31... Qh5 {[%clk 0:01:21.4]}
32. Rf4 {[%clk 0:00:24.9]} 32... Qg5 {[%clk 0:01:07.8]} 33. Qf2 {[%clk
0:00:24.1]} 33... Rd5 {[%clk 0:00:57.8]} 34. Rg4 {[%clk 0:00:21.4]} 34... Qh5
{[%clk 0:00:55.7]} 35. Qg3 {[%clk 0:00:22.4]} 35... g6 {[%clk 0:00:52.4]} 36.
Re3 {[%clk 0:00:22.9]} 36... Red7 {[%clk 0:00:47.6]} 37. Rh4 {[%clk 0:00:19.2]}
37... Qg5 {[%clk 0:00:44.7]} 38. Rg4 {[%clk 0:00:20.4]} 38... Qh5 {[%clk
0:00:45]} 39. Re2 {[%clk 0:00:19.7]} 39... a5 {[%clk 0:00:43.2]} 40. Re3 {[%clk
0:00:13.9]} 40... b4 {[%clk 0:00:42.8]} 41. axb4 {[%clk 0:00:15.8]} 41... axb4
{[%clk 0:00:42.9]} 42. Rh4 {[%clk 0:00:15.4]} 42... Qg5 {[%clk 0:00:43.5]} 43.
Rg4 {[%clk 0:00:16.5]} 43... Qh5 {[%clk 0:00:44.3]} 44. Ree4 {[%clk 0:00:11.1]}
44... bxc3 {[%clk 0:00:43.7]} 45. bxc3 {[%clk 0:00:13]} 45... Ra5 {[%clk
0:00:37.7]} 46. Re2 {[%clk 0:00:11.4]} 46... Ra3 {[%clk 0:00:35.9]} 47. Nxe6
{[%clk 0:00:11.6]} 47... Ba6 {[%clk 0:00:18.8]} 48. Rf2 {[%clk 0:00:12.3]} 48...
Ra5 {[%clk 0:00:16.2]} 49. Nf4 {[%clk 0:00:13.1]} 49... Qxe5 {[%clk 0:00:16.3]}
50. Rf3 {[%clk 0:00:11]} 50... g5 {[%clk 0:00:16.2]} 51. Re3 {[%clk 0:00:11.9]}
51... Qd6 {[%clk 0:00:15.4]} 52. Re8+ {[%clk 0:00:12.5]} 52... Kh7 {[%clk
0:00:16.4]} 53. Qf3 {[%clk 0:00:12.7]} 53... Rf5 {[%clk 0:00:14.9]} 54. Qe4
{[%clk 0:00:13.4]} 54... Qf6 {[%clk 0:00:14.4]} 55. Qa8 {[%clk 0:00:12.6]} 55...
Rxf4 {[%clk 0:00:12.8]} 56. Rg3 {[%clk 0:00:13.4]} 56... Rf1 {[%clk 0:00:13.1]}
57. Ree3 {[%clk 0:00:11.2]} 57... Rd2 {[%clk 0:00:13.6]} 58. Qe4+ {[%clk
0:00:12]} 58... Qf5 {[%clk 0:00:12.3]} 59. Qa4 {[%clk 0:00:07.7]} 59... Qf2
{[%clk 0:00:12.3]} 60. Qe4+ {[%clk 0:00:06.5]} 60... Kg8 {[%clk 0:00:11.6]} 61.
Qa8+ {[%clk 0:00:05.3]} 61... Kh7 {[%clk 0:00:12.6]} 62. Qe4+ {[%clk 0:00:05.4]}
62... Kg8 {[%clk 0:00:13.7]} 63. Qe8+ {[%clk 0:00:06.6]} 63... Kh7 {[%clk
0:00:12.5]} 64. Qe4+ {[%clk 0:00:07.7]} 1/2-1/2

[Event "*** Titled Tuesday Blitz"]
[Site "Chess.com"]
[Date "2019.12.03"]
[Round "3"]
[White "scrapnel"]
[Black "Marcin"]
[Result "1-0"]
[WhiteElo "2706"]
[BlackElo "2361"]
[TimeControl "180+2"]
[EndTime "13:40:00 PST"]
[Termination "scrapnel won by resignation"]

1. Nf3 {[%clk 0:03:01.9]} 1... Nf6 {[%clk 0:02:58.5]} 2. c4 {[%clk 0:03:02.4]}
2... g6 {[%clk 0:02:59.4]} 3. g3 {[%clk 0:03:02.7]} 3... Bg7 {[%clk 0:03:00.4]}
4. Bg2 {[%clk 0:03:04.4]} 4... O-O {[%clk 0:03:02.3]} 5. O-O {[%clk 0:03:05.4]}
5... d5 {[%clk 0:03:04]} 6. cxd5 {[%clk 0:03:05.3]} 6... Nxd5 {[%clk 0:03:05.9]}
7. Nc3 {[%clk 0:03:06.4]} 7... Nb6 {[%clk 0:03:05.3]} 8. d3 {[%clk 0:03:06.6]}
8... e5 {[%clk 0:03:04.8]} 9. Bg5 {[%clk 0:02:56.6]} 9... f6 {[%clk 0:03:03.1]}
10. Be3 {[%clk 0:02:49.3]} 10... Be6 {[%clk 0:03:01.4]} 11. b4 {[%clk 0:02:45]}
11... Nc6 {[%clk 0:03:00.2]} 12. b5 {[%clk 0:02:24.5]} 12... Nd4 {[%clk
0:02:52.3]} 13. Bxd4 {[%clk 0:02:25.2]} 13... exd4 {[%clk 0:02:53.4]} 14. Ne4
{[%clk 0:02:26.6]} 14... f5 {[%clk 0:02:52.1]} 15. Nc5 {[%clk 0:02:26.9]} 15...
Bd5 {[%clk 0:02:53.7]} 16. a4 {[%clk 0:02:03.5]} 16... Nd7 {[%clk 0:02:42.9]}
17. Nb3 {[%clk 0:01:21.3]} 17... c5 {[%clk 0:02:11.7]} 18. bxc6 {[%clk
0:01:21.2]} 18... bxc6 {[%clk 0:02:12.8]} 19. Nfxd4 {[%clk 0:01:11.2]} 19...
Bxg2 {[%clk 0:02:12.5]} 20. Kxg2 {[%clk 0:01:09.2]} 20... Qb6 {[%clk 0:00:58.5]}
21. a5 {[%clk 0:00:40.5]} 21... Qb4 {[%clk 0:00:53.7]} 22. Rc1 {[%clk
0:00:21.4]} 22... Bxd4 {[%clk 0:00:52.6]} 23. Rc4 {[%clk 0:00:21.5]} 23... Qb7
{[%clk 0:00:49.8]} 24. Nxd4 {[%clk 0:00:21.4]} 24... Ne5 {[%clk 0:00:44.6]} 25.
Rc5 {[%clk 0:00:20.6]} 25... Nd7 {[%clk 0:00:41]} 26. Rc1 {[%clk 0:00:17.9]}
26... c5+ {[%clk 0:00:42]} 27. Nf3 {[%clk 0:00:18.4]} 27... Rac8 {[%clk
0:00:42]} 28. Rb1 {[%clk 0:00:18.6]} 28... Qc6 {[%clk 0:00:42.4]} 29. Qb3+
{[%clk 0:00:19.5]} 29... Kg7 {[%clk 0:00:43.7]} 30. Qb7 {[%clk 0:00:18.8]} 30...
Rf7 {[%clk 0:00:38.8]} 31. Qxc6 {[%clk 0:00:19]} 31... Rxc6 {[%clk 0:00:40.7]}
32. Rfc1 {[%clk 0:00:19.4]} 32... Ra6 {[%clk 0:00:41.1]} 33. Rb5 {[%clk
0:00:18]} 33... Kf6 {[%clk 0:00:39.2]} 34. Nd2 {[%clk 0:00:18.3]} 34... Re7
{[%clk 0:00:38.8]} 35. Kf1 {[%clk 0:00:17.6]} 35... Rae6 {[%clk 0:00:33.1]} 36.
e3 {[%clk 0:00:17.5]} 36... Ne5 {[%clk 0:00:29]} 37. Ke2 {[%clk 0:00:15.9]}
37... Rd7 {[%clk 0:00:24.1]} 38. Rc3 {[%clk 0:00:16.1]} 38... Red6 {[%clk
0:00:24.7]} 39. Rbxc5 {[%clk 0:00:14.7]} 39... Nxd3 {[%clk 0:00:22]} 40. Rc6
{[%clk 0:00:16]} 40... Nb4 {[%clk 0:00:20.2]} 41. Rxd6+ {[%clk 0:00:16.2]} 41...
Rxd6 {[%clk 0:00:22.1]} 42. Rc4 {[%clk 0:00:17]} 42... Nd5 {[%clk 0:00:19.4]}
43. Nb3 {[%clk 0:00:17.4]} 43... Ke5 {[%clk 0:00:20.1]} 44. Nd4 {[%clk
0:00:17.8]} 44... Nf6 {[%clk 0:00:18.6]} 45. Rc5+ {[%clk 0:00:16.4]} 45... Rd5
{[%clk 0:00:18.7]} 46. Nc6+ {[%clk 0:00:15.7]} 46... Kd6 {[%clk 0:00:18.8]} 47.
Rxd5+ {[%clk 0:00:16.6]} 47... Kxd5 {[%clk 0:00:07.7]} 48. Nxa7 {[%clk
0:00:17.4]} 48... Kc5 {[%clk 0:00:09.3]} 49. Kf3 {[%clk 0:00:14]} 49... Kb4
{[%clk 0:00:09.7]} 50. Nc6+ {[%clk 0:00:12.4]} 50... Kb5 {[%clk 0:00:10.9]} 51.
Ne7 {[%clk 0:00:11]} 51... Kxa5 {[%clk 0:00:12]} 52. Kf4 {[%clk 0:00:11.1]}
52... Kb6 {[%clk 0:00:12.7]} 53. f3 {[%clk 0:00:11.2]} 53... Kc7 {[%clk
0:00:11.9]} 54. Kg5 {[%clk 0:00:11.9]} 54... Nd7 {[%clk 0:00:08.3]} 55. Kh6
{[%clk 0:00:12.5]} 55... Ne5 {[%clk 0:00:09]} 56. f4 {[%clk 0:00:11.7]} 56...
Ng4+ {[%clk 0:00:10.3]} 57. Kxh7 {[%clk 0:00:12.4]} 57... Nxh2 {[%clk
0:00:11.6]} 58. Kxg6 {[%clk 0:00:13]} 58... Nf1 {[%clk 0:00:13]} 59. Nxf5 {[%clk
0:00:14.2]} 59... Kd7 {[%clk 0:00:13.4]} 60. g4 {[%clk 0:00:15.5]} 60... Ke6
{[%clk 0:00:14.7]} 61. g5 {[%clk 0:00:16.6]} 61... Nh2 {[%clk 0:00:14.7]} 62.
Ng7+ {[%clk 0:00:16.8]} 62... Ke7 {[%clk 0:00:15.8]} 63. f5 {[%clk 0:00:18.1]}
63... Ng4 {[%clk 0:00:17]} 64. f6+ {[%clk 0:00:18.9]} 64... Kf8 {[%clk
0:00:18.5]} 65. Nf5 {[%clk 0:00:19.9]} 65... Ne5+ {[%clk 0:00:19.3]} 66. Kh5
{[%clk 0:00:20.1]} 66... Kf7 {[%clk 0:00:20.3]} 67. Nh6+ {[%clk 0:00:20.8]}
67... Kf8 {[%clk 0:00:20.9]} 68. g6 {[%clk 0:00:21.4]} 68... Nf7 {[%clk
0:00:19.7]} 69. g7+ {[%clk 0:00:21.5]} 1-0